bitfinex/quotes_SOLUSD_20240814
["timestamp","ask_amount","ask_price","bid_price","bid_amount"]
[1723673351711,105.0,143.03,143.02,298.88751251]
[1723673357303,40.0,143.03,143.02,298.88751251]
[1723673357905,40.0,143.03,143.02,273.88751251]
[1723673358634,85.0,143.03,143.02,273.88751251]
[1723673359003,40.0,143.03,143.02,273.88751251]
[1723673359430,40.0,143.03,143.02,249.63751251]
[1723673360117,60.0,143.03,143.02,249.63751251]
[1723673360324,105.0,143.03,143.02,224.63751251]
[1723673361346,105.0,143.03,143.02,194.63751251]
[1723673361549,135.0,143.03,143.02,194.63751251]
[1723673362843,90.0,143.03,143.02,194.63751251]
[1723673363147,40.0,143.03,143.02,194.63751251]
[1723673365250,60.0,143.03,143.02,194.63751251]
[1723673367755,60.0,143.03,143.02,169.63751251]
[1723673373957,60.0,143.03,143.02,159.63751251]
[1723673374328,60.0,143.03,143.02,149.63751251]
[1723673374538,60.0,143.03,143.02,144.63751251]
[1723673374853,60.0,143.03,143.02,123.27751251]
[1723673375031,60.0,143.03,143.02,116.15751251]
[1723673375237,60.0,143.03,143.02,101.91751251]
[1723673375447,60.0,143.03,143.02,87.67751251]
[1723673375643,60.0,143.03,143.02,73.43751251]
[1723673375961,60.0,143.03,143.02,44.95751251]
[1723673376266,60.0,143.03,143.02,16.47751251]
[1723673376466,60.0,143.03,143.02,9.35751251]
[1723673376660,60.0,143.03,143.0,0.035]
[1723673376661,40.0,143.01,143.0,0.035]
[1723673376862,60.0,143.01,143.0,0.035]
[1723673377043,40.0,142.97,142.96,514.28513862]
[1723673377241,60.0,142.97,142.96,514.28513862]
[1723673377548,60.0,142.97,142.96,478.68513862]
[1723673377735,60.0,142.97,142.96,443.08513862]
[1723673377936,60.0,142.97,142.96,414.60513862]
[1723673378135,60.0,142.97,142.96,364.76513862]
[1723673378371,40.0,142.97,142.96,314.92513862]
[1723673378665,386.8,143.0,142.96,300.68513862]
[1723673378842,20.0,142.98,142.96,300.68513862]
[1723673379372,386.8,143.0,142.97,12.2809]
[1723673379670,40.0,143.01,142.98,31.6927]
[1723673379975,20.0,142.99,142.98,31.6927]
[1723673380144,20.0,143.01,142.98,31.6927]
[1723673380145,40.0,143.01,142.98,31.6927]
[1723673380480,40.0,143.03,142.98,31.6927]
[1723673380640,48.046162,143.07,143.0,33.0037]
[1723673380843,68.046162,143.07,143.01,12.2466]
[1723673381061,20.0,143.07,143.01,12.2466]
[1723673381235,20.0,143.09,143.01,12.2466]
[1723673381567,40.0,143.09,143.03,12.2466]
[1723673381779,20.0,143.11,143.03,12.2466]
[1723673381950,20.0,143.11,143.05,12.2466]
[1723673382352,20.0,143.09,143.05,12.2466]
[1723673382553,20.0,143.11,143.05,12.2466]
[1723673382750,20.0,143.14,143.07,12.2466]
[1723673383439,20.0,143.14,143.08,33.0037]
[1723673383844,28.025203,143.18,143.08,33.0037]
[1723673383845,20.0,143.17,143.09,12.2466]
[1723673384046,28.025203,143.18,143.09,12.2466]
[1723673384358,40.0,143.2,143.09,12.2466]
[1723673384545,40.0,143.2,143.1,33.0037]
[1723673384739,20.0,143.2,143.11,12.2466]
[1723673385352,20.0,143.22,143.13,12.892]
[1723673385578,40.0,143.22,143.13,12.892]
[1723673385768,20.0,143.2,143.13,12.892]
[1723673388001,40.0,143.2,143.13,12.892]
[1723673388166,20.0,143.18,143.13,12.892]
[1723673388548,20.0,143.23,143.13,12.892]
[1723673388752,40.0,143.23,143.13,12.892]
[1723673388979,20.0,143.22,143.13,12.892]
[1723673390069,20.0,143.21,143.13,12.892]
[1723673390264,20.0,143.2,143.13,12.892]
[1723673390791,20.0,143.21,143.13,12.892]
[1723673391490,40.0,143.2,143.13,12.892]
[1723673391684,20.0,143.18,143.13,12.892]
[1723673391888,20.0,143.16,143.13,12.892]
[1723673392088,40.0,143.15,143.13,12.892]
[1723673392603,20.0,143.14,143.0,30.1853]
[1723673392778,40.0,143.15,143.0,30.1853]
[1723673392779,20.0,143.12,143.0,30.1853]
[1723673393662,20.0,143.11,143.0,30.1853]
[1723673394661,20.0,143.1,143.0,30.1853]
[1723673395380,20.0,143.11,143.0,30.1853]
[1723673395791,20.0,143.11,143.01,12.892]
[1723673396093,20.0,143.1,143.01,12.892]
[1723673396890,40.0,143.11,143.01,12.892]
[1723673397063,20.0,143.11,143.01,12.892]
[1723673397389,20.0,143.1,143.01,12.892]
[1723673397597,40.0,143.1,143.01,12.892]
[1723673397799,20.0,143.09,143.01,12.892]
[1723673398105,40.0,143.1,143.01,12.892]
[1723673398302,20.0,143.09,143.01,12.892]
[1723673398600,20.0,143.14,143.01,12.892]
[1723673398783,20.0,143.15,143.02,45.0]
[1723673399168,20.0,143.16,143.03,12.892]
[1723673399403,20.0,143.17,143.05,30.1853]
[1723673399578,20.0,143.19,143.06,45.0]
[1723673399782,20.0,143.18,143.07,12.892]
[1723673400102,20.0,143.19,143.08,45.0]
[1723673400305,20.0,143.2,143.08,45.0]
[1723673400479,20.0,143.22,143.08,45.0]
[1723673400793,20.0,143.22,143.09,43.5668]
[1723673400996,20.0,143.21,143.1,45.0]
[1723673401405,20.0,143.22,143.1,45.0]
[1723673401602,20.0,143.23,143.1,45.0]
[1723673401911,20.0,143.23,143.11,13.1362]
[1723673402204,20.0,143.2,143.11,13.1362]
[1723673402497,28.009086,143.25,143.11,13.1362]
[1723673402498,20.0,143.17,143.11,13.1362]
[1723673402884,20.0,143.16,143.11,13.1362]
[1723673403092,40.0,143.16,143.11,13.1362]
[1723673403401,60.0,143.16,143.11,13.1362]
[1723673403604,40.0,143.16,143.11,13.1362]
[1723673404400,60.0,143.16,143.11,13.1362]
[1723673405102,20.0,143.13,143.07,12.4351]
[1723673405314,20.0,143.12,143.07,12.4351]
[1723673407193,20.0,143.17,143.07,12.4351]
[1723673407706,20.0,143.21,143.08,45.0]
[1723673407895,20.0,143.23,143.09,43.7865]
[1723673408095,20.0,143.23,143.1,45.0]
[1723673408709,20.0,143.23,143.11,12.8997394]
[1723673408932,20.0,143.22,143.12,45.0]
[1723673409187,20.0,143.21,143.12,45.0]
[1723673410016,20.0,143.19,143.11,12.0201]
[1723673410587,386.8,143.26,143.11,12.0201]
[1723673410588,20.0,143.17,143.11,12.0201]
[1723673410998,20.0,143.21,143.11,12.0201]
[1723673411716,20.0,143.23,143.11,12.0201]
[1723673411903,48.009086,143.25,143.12,45.0]
[1723673412109,20.0,143.25,143.13,42.5028]
[1723673412314,20.0,143.25,143.14,45.0]
[1723673412729,20.0,143.27,143.14,45.0]
[1723673412932,20.0,143.27,143.15,12.9337]
[1723673413108,20.0,143.27,143.16,45.0]
[1723673413819,20.0,143.22,143.15,12.9337]
[1723673414019,20.0,143.2,143.15,12.9337]
[1723673414200,40.0,143.22,143.15,12.9337]
[1723673414822,20.0,143.21,143.15,12.9337]
[1723673417426,20.0,143.18,143.15,12.9337]
[1723673417733,20.0,143.17,143.15,12.9337]
[1723673418313,20.0,143.17,143.13,30.2062]
[1723673419340,20.0,143.19,143.13,30.2062]
[1723673420525,20.0,143.25,143.13,30.2062]
[1723673420728,20.0,143.27,143.15,12.0796]
[1723673420930,40.0,143.29,143.17,33.1946]
[1723673421150,40.0,143.29,143.18,12.0796]
[1723673421151,20.0,143.29,143.18,12.0796]
[1723673421457,20.0,143.27,143.19,45.0]
[1723673421655,20.0,143.27,143.18,12.0796]
[1723673422029,20.0,143.26,143.18,12.0796]
[1723673422223,20.0,143.24,143.18,12.0796]
[1723673422428,20.0,143.23,143.18,12.0796]
[1723673422727,40.0,143.25,143.18,12.0796]
[1723673423250,20.0,143.23,143.18,12.0796]
[1723673423453,20.0,143.22,143.18,12.0796]
[1723673423751,20.0,143.23,143.18,12.0796]
[1723673423973,60.0,143.25,143.18,12.0796]
[1723673424342,20.0,143.23,143.18,12.0796]
[1723673425028,60.0,143.25,143.18,12.0796]
[1723673425329,40.0,143.25,143.18,12.0796]
[1723673425532,27.99877,143.31,143.18,12.0796]
[1723673425726,40.16284228,143.34,143.2,44.9965]
[1723673425932,20.0,143.29,143.2,44.9965]
[1723673426841,40.0,143.31,143.2,44.9965]
[1723673427028,20.0,143.3,143.2,44.9965]
[1723673427230,40.15870132,143.3,143.21,45.0]
[1723673428058,40.0,143.29,143.2,44.9965]
[1723673428263,20.0,143.28,143.2,44.9965]
[1723673428868,20.0,143.29,143.21,45.0]
[1723673429051,20.0,143.31,143.21,45.0]
[1723673429363,20.0,143.3,143.21,45.0]
[1723673429548,20.15789781,143.32,143.21,45.0]
[1723673429745,20.0,143.32,143.21,45.0]
[1723673429951,20.0,143.33,143.21,45.0]
[1723673430645,20.0,143.35,143.22,12.9322]
[1723673430969,20.0,143.35,143.25,12.9322]
[1723673431259,40.15367831,143.37,143.26,45.0]
[1723673431451,20.0,143.37,143.26,45.0]
[1723673432637,20.0,143.39,143.26,45.0]
[1723673432844,20.0,143.41,143.28,31.3949]
[1723673433035,60.14571427,143.43,143.3,12.9322]
[1723673433243,40.0,143.43,143.31,45.0]
[1723673433436,20.0,143.4,143.3,12.9322]
[1723673433646,20.0,143.41,143.3,12.9322]
[1723673433647,20.0,143.38,143.3,12.9322]
[1723673434336,20.0,143.39,143.3,12.9322]
[1723673435275,20.0,143.35,143.3,12.9322]
[1723673437469,40.0,143.35,143.3,12.9322]
[1723673437774,20.0,143.35,143.3,12.9322]
[1723673438875,10.0,143.36,143.3,12.9322]
[1723673440184,20.0,143.35,143.3,12.9322]
[1723673443174,40.0,143.35,143.3,12.9322]
[1723673443492,40.0,143.35,143.28,31.3949]
[1723673443693,20.0,143.32,143.26,12.2251]
[1723673443893,20.0,143.31,143.26,12.2251]
[1723673444976,20.0,143.29,143.22,12.2251]
[1723673445189,20.0,143.27,143.22,12.2251]
[1723673445362,20.0,143.26,143.22,12.2251]
[1723673445792,40.0,143.26,143.22,12.2251]
[1723673445964,40.0,143.26,143.19,32.7356]
[1723673445965,20.0,143.26,143.19,32.7356]
[1723673446165,20.0,143.28,143.19,32.7356]
[1723673447070,20.0,143.29,143.19,32.7356]
[1723673447595,20.0,143.37,143.2,12.2251]
[1723673447804,20.0,143.47,143.3,0.12549]
[1723673447979,20.0,143.45,143.3,66.13549]
[1723673448303,20.0,143.47,143.3,66.13549]
[1723673448474,20.0,143.47,143.31,0.12549]
[1723673448799,20.0,143.47,143.31,0.25098]
[1723673450977,20.0,143.46,143.31,0.25098]
[1723673451476,20.0,143.46,143.31,0.12549]
[1723673451805,20.0,143.45,143.31,0.12549]
[1723673451976,20.0,143.44,143.31,0.12549]
[1723673452577,20.0,143.46,143.31,0.12549]
[1723673453675,20.0,143.46,143.31,0.25098]
[1723673455005,20.0,143.46,143.33,21.01]
[1723673455193,20.0,143.46,143.35,21.01]
[1723673455402,20.0,143.47,143.34,66.10549]
[1723673455783,20.0,143.47,143.34,65.98]
[1723673456894,20.0,143.46,143.34,65.98]
[1723673457480,40.0,143.45,143.32,66.8868]
[1723673457676,65.0,143.44,143.32,66.8868]
[1723673457880,65.0,143.44,143.32,45.9068]
[1723673457881,20.0,143.43,143.32,45.9068]
[1723673458300,20.0,143.42,143.32,45.9068]
[1723673458477,20.0,143.41,143.32,45.9068]
[1723673458788,20.0,143.4,143.32,45.9068]
[1723673459199,20.0,143.43,143.32,45.9068]
[1723673459892,20.0,143.42,143.32,45.9068]
[1723673460104,20.0,143.43,143.32,66.8868]
[1723673460406,20.0,143.43,143.33,45.0]
[1723673460595,20.0,143.46,143.33,65.98]
[1723673461880,20.0,143.46,143.34,0.12549]
[1723673462080,20.0,143.48,143.34,0.12549]
[1723673462382,20.0,143.46,143.34,0.12549]
[1723673462799,20.0,143.48,143.34,0.12549]
[1723673463175,40.0,143.49,143.36,20.98]
[1723673463508,40.0,143.49,143.37,45.0]
[1723673464598,50.0,143.51,143.37,65.98]
[1723673464808,20.0,143.49,143.37,65.98]
[1723673465102,40.0,143.48,143.37,65.98]
[1723673465312,20.0,143.48,143.37,65.98]
[1723673465620,20.0,143.47,143.37,65.98]
[1723673465820,20.0,143.46,143.37,45.0]
[1723673466022,20.0,143.47,143.37,45.0]
[1723673466220,20.0,143.46,143.35,12.3632]
[1723673466550,20.0,143.45,143.35,12.3632]
[1723673467027,45.0,143.44,143.35,12.3632]
[1723673467193,20.0,143.43,143.35,12.3632]
[1723673467393,40.0,143.43,143.35,12.3632]
[1723673467618,20.0,143.43,143.35,12.3632]
[1723673469703,10.0,143.51,143.35,33.3432]
[1723673469704,20.0,143.49,143.35,33.3432]
[1723673469905,10.0,143.51,143.38,32.5213]
[1723673469906,20.0,143.48,143.38,32.5213]
[1723673470108,20.0,143.5,143.38,53.5013]
[1723673470308,30.0,143.51,143.38,53.5013]
[1723673471224,20.0,143.5,143.38,53.5013]
[1723673471431,20.0,143.5,143.39,13.2533]
[1723673471606,40.0,143.49,143.39,13.2533]
[1723673472307,20.0,143.49,143.39,13.2533]
[1723673472707,45.0,143.48,143.39,13.2533]
[1723673472916,20.0,143.47,143.39,13.2533]
[1723673473519,40.0,143.5,143.39,13.2533]
[1723673473848,45.0,143.49,143.39,13.2533]
[1723673474137,20.0,143.48,143.39,13.2533]
[1723673474804,40.0,143.5,143.39,13.2533]
[1723673475008,45.0,143.49,143.39,13.2533]
[1723673475245,20.0,143.48,143.39,13.2533]
[1723673475632,40.0,143.47,143.39,13.2533]
[1723673475820,65.0,143.46,143.39,13.2533]
[1723673476014,45.0,143.46,143.39,13.2533]
[1723673476220,20.0,143.45,143.39,13.2533]
[1723673480044,20.0,143.46,143.39,13.2533]
[1723673480237,20.0,143.47,143.3,42.4525]
[1723673480238,20.0,143.43,143.3,42.4525]
[1723673480459,20.0,143.47,143.3,63.4325]
[1723673480460,65.0,143.42,143.3,63.4325]
[1723673480756,20.0,143.42,143.35,30.0469]
[1723673480961,20.0,143.42,143.35,51.0269]
[1723673481133,40.0,143.48,143.36,33.3856]
[1723673481330,45.0,143.47,143.36,33.3856]
[1723673481538,20.0,143.46,143.36,33.3856]
[1723673482658,20.0,143.44,143.36,12.4056]
[1723673482847,20.0,143.43,143.36,12.4056]
[1723673484440,20.0,143.45,143.36,12.4056]
[1723673484643,45.0,143.44,143.36,12.4056]
[1723673484836,40.0,143.45,143.36,12.4056]
[1723673485344,20.0,143.45,143.36,33.3856]
[1723673485668,20.0,143.44,143.36,12.4056]
[1723673485864,45.0,143.43,143.36,12.4056]
[1723673486042,20.0,143.42,143.36,12.4056]
[1723673486238,20.0,143.43,143.36,12.4056]
[1723673486561,40.0,143.43,143.36,12.4056]
[1723673486762,20.0,143.41,143.36,12.4056]
[1723673486965,20.0,143.4,143.36,12.4056]
[1723673487169,20.0,143.42,143.36,12.4056]
[1723673487369,50.0,143.51,143.36,33.3856]
[1723673487868,20.0,143.47,143.36,33.3856]
[1723673488168,20.0,143.49,143.37,45.0]
[1723673488641,20.0,143.47,143.37,45.0]
[1723673488846,40.0,143.47,143.36,12.4056]
[1723673489049,40.0,143.49,143.36,33.3856]
[1723673489244,40.0,143.49,143.37,45.0]
[1723673489668,40.0,143.47,143.36,12.4056]
[1723673489873,20.0,143.46,143.36,12.4056]
[1723673492582,20.0,143.47,143.36,12.4056]
[1723673493877,40.0,143.45,143.36,12.4056]
[1723673494173,65.0,143.44,143.36,12.4056]
[1723673494370,60.13168069,143.43,143.36,12.4056]
[1723673494577,20.0,143.42,143.36,12.4056]
[1723673494751,40.13168069,143.42,143.36,12.4056]
[1723673494954,20.0,143.42,143.36,12.4056]
[1723673495564,20.13168069,143.47,143.36,12.4056]
[1723673495767,20.0,143.47,143.36,12.4056]
[1723673495975,20.0,143.48,143.36,12.4056]
[1723673496477,20.0,143.49,143.36,12.4056]
[1723673496681,20.13168069,143.5,143.37,66.10549]
[1723673497182,20.13168069,143.5,143.37,45.12549]
[1723673497387,40.0,143.49,143.37,45.12549]
[1723673497680,60.13060302,143.49,143.37,45.0]
[1723673497880,20.13060302,143.48,143.37,45.0]
[1723673498078,20.0,143.47,143.37,45.0]
[1723673498579,40.0,143.49,143.37,45.0]
[1723673499166,20.0,143.48,143.37,45.0]
[1723673499379,40.13081411,143.48,143.37,45.0]
[1723673500369,40.0,143.48,143.37,45.0]
[1723673501179,20.0,143.46,143.37,45.0]
[1723673501386,20.0,143.45,143.36,12.4056]
[1723673501985,20.0,143.45,143.37,20.98]
[1723673502283,20.0,143.45,143.39,20.98]
[1723673502455,20.0,143.47,143.39,20.98]
[1723673502651,20.0,143.47,143.36,12.4056]
[1723673503287,20.0,143.49,143.37,20.98]
[1723673503288,20.0,143.46,143.37,20.98]
[1723673503583,40.13149803,143.49,143.37,20.98]
[1723673503785,20.0,143.49,143.37,20.98]
[1723673503971,20.0,143.49,143.39,20.98]
[1723673504675,20.0,143.49,143.36,12.53109]
[1723673504676,40.0,143.48,143.36,12.4056]
[1723673504988,65.0,143.47,143.36,12.4056]
[1723673505189,20.13149803,143.46,143.36,12.4056]
[1723673505375,20.0,143.45,143.36,12.4056]
[1723673507561,20.0,143.45,143.36,33.3856]
[1723673508186,20.0,143.45,143.36,12.4056]
[1723673508571,20.0,143.45,143.36,33.3856]
[1723673508765,20.13149803,143.49,143.38,20.98]
[1723673508989,20.13149803,143.49,143.39,65.98]
[1723673509175,40.0,143.5,143.39,20.98]
[1723673509773,40.0,143.5,143.38,20.98]
[1723673509971,65.0,143.49,143.38,20.98]
[1723673510178,20.13149803,143.48,143.38,20.98]
[1723673510388,20.0,143.47,143.38,20.98]
[1723673511673,20.13149803,143.48,143.42,52.4082]
[1723673511872,10.0,143.51,143.42,52.4082]
[1723673513567,20.0,143.5,143.42,52.4082]
[1723673514393,20.0,143.5,143.43,65.98]
[1723673514995,10.0,143.51,143.43,65.98]
[1723673515172,10.0,143.51,143.44,0.12549]
[1723673516010,10.0,143.51,143.46,20.98]
[1723673516301,10.0,143.51,143.47,65.98]
[1723673516472,10.0,143.51,143.48,54.06460253]
[1723673516670,0.811394,143.53,143.5,33.6868]
[1723673516894,0.811394,143.53,143.5,12.7068]
[1723673517199,0.811394,143.53,143.51,45.0]
[1723673518307,20.0,143.63,143.51,45.0]
[1723673518488,20.0,143.64,143.51,45.0]
[1723673518890,20.0,143.63,143.51,44.5]
[1723673519122,20.0,143.64,143.51,44.5]
[1723673519485,52.43072864,143.65,143.51,44.5]
[1723673519486,32.3049,143.65,143.51,44.5]
[1723673519720,40.0,143.64,143.51,44.5]
[1723673520494,40.0,143.62,143.51,44.5]
[1723673520728,20.0,143.6,143.52,32.5113]
[1723673520932,65.0,143.59,143.52,32.5113]
[1723673522018,20.0,143.59,143.52,32.5113]
[1723673522220,20.0,143.65,143.52,32.5113]
[1723673522427,20.0,143.63,143.52,32.5113]
[1723673522633,40.0,143.65,143.52,32.5113]
[1723673522835,40.0,143.65,143.53,45.0]
[1723673524027,20.0,143.65,143.53,45.0]
[1723673524217,20.0,143.64,143.54,12.9224]
[1723673524423,40.0,143.64,143.54,12.9224]
[1723673524934,20.0,143.65,143.54,12.9224]
[1723673525235,20.0,143.64,143.54,12.9224]
[1723673525646,0.811394,143.67,143.55,32.2227]
[1723673525851,0.811394,143.67,143.56,45.0]
[1723673526217,0.811394,143.67,143.57,0.12549]
[1723673526417,0.811394,143.67,143.57,0.25098]
[1723673526639,0.811394,143.67,143.57,0.12549]
[1723673528452,0.811394,143.67,143.58,12.9224]
[1723673528630,0.811394,143.67,143.59,45.0]
[1723673529340,0.811394,143.67,143.6,31.1159]
[1723673529851,0.811394,143.67,143.61,45.0]
[1723673530640,0.811394,143.67,143.6,31.1159]
[1723673530844,65.811394,143.67,143.6,31.1159]
[1723673531027,45.811394,143.67,143.6,31.1159]
[1723673531226,20.0,143.66,143.6,31.1159]
[1723673531841,20.811394,143.67,143.6,31.1159]
[1723673532617,40.811394,143.67,143.6,31.1159]
[1723673533530,60.811394,143.67,143.6,31.1159]
[1723673534230,20.811394,143.67,143.6,31.1159]
[1723673534537,0.811394,143.67,143.6,31.1159]
[1723673534952,20.811394,143.67,143.6,31.1159]
[1723673535250,20.0,143.66,143.6,31.1159]
[1723673535457,0.811394,143.67,143.6,31.1159]
[1723673535626,20.811394,143.67,143.6,31.1159]
[1723673535830,20.0,143.66,143.6,31.1159]
[1723673536041,20.0,143.65,143.58,12.9224]
[1723673536259,20.0,143.64,143.58,12.9224]
[1723673538939,20.0,143.64,143.58,12.9224]
[1723673539869,20.0,143.64,143.56,32.7435]
[1723673539870,20.0,143.62,143.56,32.7435]
[1723673540050,20.0,143.61,143.56,32.7435]
[1723673540249,20.0,143.61,143.55,12.405]
[1723673540470,20.0,143.6,143.52,32.7435]
[1723673540675,20.0,143.59,143.52,32.7435]
[1723673541379,20.0,143.6,143.52,32.7435]
[1723673542477,20.0,143.62,143.52,32.7435]
[1723673542655,40.0,143.62,143.52,32.7435]
[1723673543055,45.0,143.61,143.52,32.7435]
[1723673543264,20.0,143.6,143.52,32.7435]
[1723673544069,20.0,143.64,143.52,32.7435]
[1723673544070,20.0,143.61,143.52,32.7435]
[1723673545075,20.0,143.69,143.55,20.98]
[1723673545286,0.811394,143.67,143.56,45.0]
[1723673546182,20.0,143.66,143.56,45.0]
[1723673546989,20.811394,143.67,143.56,45.0]
[1723673547283,40.811394,143.67,143.56,45.0]
[1723673547483,40.0,143.65,143.54,13.122]
[1723673547657,40.0,143.64,143.54,13.122]
[1723673547859,20.0,143.64,143.54,13.122]
[1723673548072,20.0,143.65,143.54,34.102]
[1723673548454,0.811394,143.67,143.54,34.102]
[1723673548654,45.811394,143.67,143.54,34.102]
[1723673548863,20.0,143.66,143.54,34.102]
[1723673549065,20.0,143.66,143.55,45.0]
[1723673550160,65.0,143.65,143.54,13.122]
[1723673550364,20.0,143.61,143.54,13.122]
[1723673550562,20.0,143.6,143.54,13.122]
[1723673550887,20.0,143.59,143.54,13.122]
[1723673551066,20.0,143.58,143.52,32.7435]
[1723673551266,20.0,143.57,143.51,13.0741]
[1723673551479,20.0,143.56,143.51,13.0741]
[1723673551694,20.0,143.58,143.51,13.0741]
[1723673554273,20.0,143.6,143.51,13.0741]
[1723673555672,20.0,143.59,143.51,13.0741]
[1723673555989,20.0,143.58,143.51,13.0741]
[1723673556362,20.0,143.57,143.51,13.0741]
[1723673556686,20.0,143.59,143.51,13.0741]
[1723673556687,20.0,143.56,143.51,13.0741]
[1723673557065,40.0,143.58,143.51,13.0741]
[1723673557263,45.0,143.57,143.51,13.0741]
[1723673557469,20.0,143.56,143.51,13.0741]
[1723673560199,20.0,143.55,143.48,31.7701]
[1723673560391,20.0,143.54,143.48,31.7701]
[1723673560990,20.0,143.56,143.48,31.7701]
[1723673561198,20.0,143.54,143.48,31.7701]
[1723673561498,40.0,143.54,143.48,31.7701]
[1723673561794,20.0,143.52,143.47,13.268]
[1723673561971,20.0,143.51,143.47,13.268]
[1723673562787,20.0,143.51,143.44,32.6582]
[1723673563181,20.0,143.53,143.44,32.6582]
[1723673563372,45.0,143.52,143.44,32.6582]
[1723673563581,20.0,143.51,143.44,32.6582]
[1723673563873,20.0,143.5,143.43,12.0287]
[1723673564095,20.0,143.49,143.43,12.0287]
[1723673564899,20.0,143.48,143.43,12.0287]
[1723673565106,32.57753809,143.48,143.43,12.0287]
[1723673565403,20.0,143.47,143.4,30.9815]
[1723673565576,32.57753809,143.47,143.4,30.9815]
[1723673566201,20.0,143.46,143.39,12.3271]
[1723673566375,20.0,143.45,143.39,12.3271]
[1723673566893,32.58025262,143.45,143.39,12.3271]
[1723673567264,20.0,143.44,143.37,30.0058]
[1723673567498,20.0,143.43,143.37,30.0058]
[1723673567688,20.0,143.42,143.35,13.2915]
[1723673567885,20.0,143.41,143.35,13.2915]
[1723673568068,32.58237155,143.41,143.35,13.2915]
[1723673570076,20.0,143.41,143.35,13.2915]
[1723673570276,20.0,143.42,143.35,13.2915]
[1723673571591,40.0,143.42,143.35,13.2915]
[1723673571794,12.58403965,143.41,143.35,13.2915]
[1723673571973,20.0,143.4,143.35,13.2915]
[1723673572779,20.0,143.41,143.35,13.2915]
[1723673573984,32.58404314,143.45,143.35,13.2915]
[1723673574312,45.0,143.44,143.35,13.2915]
[1723673574506,32.58410037,143.43,143.35,13.2915]
[1723673576704,32.58410037,143.43,143.35,34.2715]
[1723673576906,20.0,143.43,143.35,13.2915]
[1723673577594,32.58293307,143.45,143.35,13.2915]
[1723673577822,20.0,143.44,143.35,13.2915]
[1723673578117,20.0,143.43,143.35,13.2915]
[1723673578688,20.0,143.45,143.35,13.2915]
[1723673578897,32.58220048,143.45,143.35,13.2915]
[1723673579216,20.0,143.44,143.35,13.2915]
[1723673579416,20.0,143.46,143.35,13.2915]
[1723673579579,32.58143809,143.46,143.35,13.2915]
[1723673580110,20.0,143.45,143.35,13.2915]
[1723673580294,20.0,143.43,143.35,13.2915]
[1723673580496,40.0,143.43,143.35,13.2915]
[1723673580681,20.0,143.42,143.35,13.2915]